fUSD/lending_fUSD_20250612
["ID","MTS","AMOUNT","RATE_DAILY","PERIOD"]
[365490389,1749701475460,-758.42,0.00019985,2]
[365490390,1749701475470,-758.42,0.00019985,2]
[365490391,1749701475479,-758.42,0.00019985,2]
[365490392,1749701475489,-758.42,0.00019985,2]
[365490393,1749701475499,-758.42,0.00019985,2]
[365490394,1749701475508,-758.42,0.00019985,2]
[365490395,1749701475518,-758.42,0.00019985,2]
[365490396,1749701475527,-672.5737572,0.00019985,2]
[365490397,1749701475536,-300.0,0.00019985,2]
[365490398,1749701475547,-666.0,0.00019985,2]
[365490399,1749701475559,-300.0,0.00019985,2]
[365490400,1749701475569,-300.0,0.00019985,2]
[365490401,1749701475578,-7011.97355319,0.00019985,3]
[365490402,1749701475588,-408483.79088148,0.00019986,3]
[365490403,1749701475605,-812.11365138,0.00019986,3]
[365490404,1749701478416,2000.0,0.00018837,120]
[365490405,1749701553861,500.0,0.00016165,2]
[365490406,1749701624966,500.0,0.00038084,120]
[365490407,1749701625028,500.0,0.00038084,120]
[365490408,1749701625120,464.83,0.00038084,120]
[365490410,1749701677680,193.34532221,0.000161,2]
[365490415,1749701727137,490.0,0.00038084,120]
[365490416,1749701772239,110.17592259,0.00016165,2]
[365490417,1749701772265,389.82407741,0.00016165,2]
[365490418,1749701780330,500.0,0.00024657,120]
[365490419,1749701783190,500.0,0.00016165,2]
[365490420,1749701794636,500.0,0.00024657,120]
[365490421,1749701837376,-152.0,0.00018068,2]
[365490422,1749701840751,500.0,0.00038084,120]
[365490423,1749701841013,500.0,0.00038084,120]
[365490424,1749701841266,592.14333136,0.00038084,120]
[365490427,1749701896268,311.04,0.00013699,2]
[365490428,1749701922266,567.21,0.00017983,2]
[365490429,1749701922493,567.21,0.00017988,2]
[365490430,1749701922686,567.21,0.00017993,2]
[365490431,1749701923197,567.21,0.00017997,2]
[365490432,1749701924656,-152.0,0.00018002,2]
[365490433,1749701925743,200.0,0.00017932,2]
[365490434,1749701938204,150.0,0.00018,2]
[365490435,1749701952593,499.39940604,0.00038053,120]
[365490455,1749701992778,500.0,0.00016165,2]
[365490456,1749701998889,176.49283414,0.00017921,2]
[365490457,1749702000956,780.36,0.00024658,120]
[365490458,1749702029653,150.0,0.00017662,2]
[365490460,1749702054603,174.75,0.0001413,2]
[365490461,1749702062439,1238.76,0.00017662,2]
[365490462,1749702091412,1500.0,0.00017653,2]
[365490463,1749702094896,10000.0,0.00038053,50]
[365490464,1749702095634,10000.0,0.00038053,50]
[365490465,1749702096961,10000.0,0.00038053,50]
[365490466,1749702112505,9283.197,0.00038053,50]
[365490467,1749702116500,11536.9,0.00017718,2]
[365490469,1749702131996,1367.74,0.00017726,2]
[365490471,1749702218760,769.0,0.00024657,120]
[365490472,1749702233827,3840.0,0.00016,10]
[365490473,1749702253578,2876.36565988,0.00017687,2]
[365490474,1749702253602,21023.63434012,0.00017687,2]
[365490475,1749702258948,490.0,0.00038053,120]
[365490476,1749702261230,6157.07823131,0.00017687,2]
[365490477,1749702261261,20146.11176869,0.00017687,2]
[365490478,1749702288724,-257.73821788,0.00018002,2]
[365490479,1749702293321,-157.47178212,0.00018002,2]
[365490480,1749702293346,-10.40660486,0.00018003,2]
[365490482,1749702301486,-239.59339514,0.00018003,2]
[365490483,1749702301509,-98.57,0.00018003,2]
[365490484,1749702326314,7034.60080274,0.00016,2]
[365490485,1749702326339,27180.71257143,0.00016,2]
[365490486,1749702326368,9921.02585562,0.00016,2]
[365490487,1749702346296,6421.52,0.00017717,2]
[365490488,1749702350069,250.0,0.00017725,2]
[365490489,1749702354233,496.12119807,0.0002,30]
[365490490,1749702355443,3953.71477441,0.0002,30]
[365490491,1749702355971,1198.664806,0.00017913,2]
[365490492,1749702358872,3168.11,0.00017732,2]
[365490494,1749702365028,1540.18,0.00017723,2]
[365490495,1749702368333,810.84117318,0.00016283,2]
[365490496,1749702368655,810.84117318,0.00016516,2]
[365490497,1749702368962,810.84117318,0.00016929,2]
[365490498,1749702369294,810.84117318,0.00017166,2]
[365490499,1749702369636,810.84117318,0.00017463,2]
[365490500,1749702370271,627.00604391,0.00017627,2]
[365490501,1749702370295,183.83512927,0.00017627,2]
[365490502,1749702371973,203.0,0.00017098,2]
[365490503,1749702372226,203.0,0.00017908,3]
[365490506,1749702378718,-201.43,0.00018003,2]
[365490507,1749702378742,-54.29220394,0.00018004,2]
[365490508,1749702382155,-195.70779606,0.00018004,2]
[365490509,1749702382179,-109.37555982,0.00018004,2]
[365490510,1749702383748,-190.62444018,0.00018004,2]
[365490511,1749702383772,-86.50777218,0.00018007,2]
[365490512,1749702389037,728.39,0.00017724,2]
[365490514,1749702401743,206.0,0.00017098,2]
[365490516,1749702410311,-296.68194218,0.00018,3]
[365490517,1749702421558,300.0,0.00017999,2]
[365490518,1749702425619,-256.04178212,0.00018,3]
[365490519,1749702427172,-289.36982996,0.00018,3]
[365490520,1749702439293,-190.62444018,0.00018,3]
[365490521,1749702439560,590.959739,0.0001791,2]
[365490522,1749702447132,-2319.46283792,0.00018,3]
[365490523,1749702454129,-206.11440092,0.00018,3]
[365490524,1749702469514,-239.59339514,0.00018,3]
[365490525,1749702470293,500.0,0.00016165,2]
[365490526,1749702472401,420.05,0.00017268,2]
[365490527,1749702475816,580.2291673,0.00038061,50]
[365490529,1749702484967,-257.73821788,0.00018,3]
[365490531,1749702492160,203.0,0.00017098,2]
[365490532,1749702495003,192.23309511,0.0001439,2]
[365490534,1749702498239,1000.0,0.000135,2]
[365490535,1749702498367,298.84965999,0.000125,2]
[365490536,1749702498843,-206.29220394,0.00018,3]
[365490537,1749702500868,500.0,0.00017241,2]
[365490541,1749702501673,2174.068245,0.00012,30]
[365490543,1749702512070,4828.07323086,0.00038061,120]
[365490544,1749702512141,480.0,0.00038061,120]
[365490545,1749702514582,217.74292251,0.0001,2]
[365490547,1749702521541,206.0,0.00017098,2]
[365490550,1749702525072,348.67290366,0.00010136,2]
[365490562,1749702541275,300.0,0.00017999,2]
[365490566,1749702546844,963.9,0.00015354,2]
[365490567,1749702547070,963.9,0.00017618,2]
[365490573,1749702601786,300.0,0.00017999,2]
[365490574,1749702602484,1200.0,0.00017999,2]
[365490575,1749702609147,2404.11,0.00017292,2]
[365490582,1749702626459,1000.0,0.00038061,50]
[365490583,1749702629205,150.0,0.00017313,7]
[365490586,1749702632335,-15129.25768295,0.00018,3]
[365490588,1749702632393,-3455.53912853,0.00018,3]
[365490589,1749702632404,-925.58672338,0.00018,2]
[365490590,1749702632415,-300.0,0.00018,2]
[365490591,1749702632426,-248.32295358,0.00018,2]
[365490592,1749702632439,-248.3229534,0.00018,2]
[365490593,1749702632450,-480.70222782,0.00018007,2]
[365490594,1749702632461,-300.0,0.00018007,2]
[365490595,1749702632471,-567.21,0.00018012,2]
[365490596,1749702632486,-567.21,0.00018016,2]
[365490597,1749702632497,-567.21,0.00018021,2]
[365490598,1749702632508,-567.21,0.00018026,2]
[365490599,1749702632520,-567.21,0.00018031,2]
[365490600,1749702632531,-567.21,0.00018035,2]
[365490601,1749702632541,-248.3229534,0.00018038,2]
[365490602,1749702632552,-567.21,0.0001804,2]
[365490603,1749702632562,-567.21,0.00018045,2]
[365490604,1749702632573,-567.21,0.00018049,2]
[365490605,1749702632583,-567.21,0.00018054,2]
[365490606,1749702632593,-151.0,0.00018056,2]
[365490607,1749702632604,-567.21,0.00018059,2]
[365490608,1749702632615,-567.21,0.00018064,2]
[365490609,1749702632625,-300.0,0.00018066,2]
[365490610,1749702632635,-5272.62539467,0.00018067,2]
[365490611,1749702632645,-48.0,0.00018068,2]
[365490612,1749702632656,-567.21,0.00018068,2]
[365490613,1749702632666,-567.21,0.00018073,2]
[365490614,1749702632676,-248.3229534,0.00018107,2]
[365490615,1749702632686,-151.0,0.00018111,2]
[365490616,1749702632697,-850.0,0.00018166,2]
[365490617,1749702632707,-151.0,0.00018166,2]
[365490618,1749702632717,-248.3229534,0.00018176,2]
[365490619,1749702632727,-161.54904643,0.00018202,2]
[365490620,1749702632737,-240.86,0.00018202,2]
[365490621,1749702632747,-613.6095316,0.00018208,2]
[365490622,1749702632756,-172.78162791,0.00018208,2]
[365490624,1749702632766,-518.22344615,0.00018208,2]
[365490625,1749702632776,-500.0,0.00018208,2]
[365490626,1749702632786,-33047.3106421,0.00018209,2]
[365490627,1749702632797,-21029.20394376,0.00018219,2]
[365490628,1749702632807,-225.74999279,0.00018221,2]
[365490629,1749702632817,-248.3229534,0.00018245,2]
[365490631,1749702632827,-248.3229534,0.00018314,2]
[365490633,1749702632836,-248.3229534,0.00018383,2]
[365490635,1749702632846,-820.98,0.00018389,2]
[365490637,1749702632856,-152.8719109,0.00018423,2]
[365490639,1749702632866,-151.0,0.00018423,2]
[365490641,1749702632876,-1957.856,0.00018423,2]
[365490643,1749702632886,-207.4,0.00018423,2]
[365490644,1749702632896,-166.51,0.0001843,2]
[365490646,1749702632906,-248.3229534,0.00018452,2]
[365490647,1749702632915,-2030.29667201,0.00018478,2]
[365490650,1749702632930,-248.3229534,0.00018521,2]
[365490652,1749702632940,-503.85,0.00018535,2]
[365490654,1749702632950,-301.45,0.00018535,2]
[365490656,1749702632960,-1000.0,0.00018552,2]
[365490659,1749702632970,-497.83,0.00018552,2]
[365490662,1749702632980,-493.14,0.00018552,2]
[365490665,1749702632990,-496.61,0.00018552,2]
[365490667,1749702633000,-305.22,0.00018552,2]
[365490669,1749702633010,-501.68,0.00018552,2]
[365490671,1749702633020,-494.19,0.00018552,2]
[365490673,1749702633031,-248.3229534,0.0001859,2]
[365490675,1749702633041,-248.3229534,0.00018659,2]
[365490677,1749702633051,-203.0,0.00018717,4]
[365490679,1749702633061,-810.84117318,0.00018723,2]
[365490681,1749702633072,-248.3229534,0.00018728,2]
[365490683,1749702633083,-1756.53,0.00018787,2]
[365490685,1749702633093,-237.13140788,0.00018789,2]
[365490688,1749702633104,-500.0,0.00018789,2]
[365490690,1749702633115,-348.46219625,0.00018789,2]
[365490692,1749702633125,-235.93427572,0.00018789,2]
[365490694,1749702633136,-190.29777077,0.00018789,2]
[365490696,1749702633147,-55376.54790135,0.0001879,2]
[365490744,1749702633620,-530.00283104,0.0001879,2]
[365490747,1749702633642,-59307.24926627,0.0001879,2]
[365490750,1749702633683,-707.44387443,0.0001879,2]
[365490751,1749702633701,-1078.0,0.0001879,2]
[365490752,1749702633718,-322.0621343,0.0001879,2]
[365490855,1749702638511,-1011.402922,0.0001879,2]
[365490856,1749702638524,-398.68826324,0.0001879,2]
[365490857,1749702638624,-2834.92244878,0.0001879,2]
[365490858,1749702638635,-1006.6886836,0.0001879,2]
[365490859,1749702638646,-2073.93784155,0.0001879,2]
[365490881,1749702639278,738.84012923,0.000179,2]
[365490882,1749702640493,-35801.81611966,0.0001879,2]
[365490883,1749702640543,-8063.055,0.0001879,2]
[365490884,1749702640555,-940.0,0.0001879,2]
[365490885,1749702640602,-1724.2500075,0.0001879,2]
[365490886,1749702640660,-311.17910163,0.0001879,2]
[365490887,1749702640670,-248.3229534,0.00018797,2]
[365490888,1749702640679,-248.3229534,0.00018866,2]
[365490889,1749702640688,-10707.93017614,0.00018878,2]
[365490890,1749702640698,-810.84117318,0.00018905,2]
[365490891,1749702640708,-500.0,0.00018905,2]
[365490892,1749702640717,-323.14923167,0.00018905,2]
[365490893,1749702640727,-493.34,0.00018909,2]
[365490894,1749702640736,-301.63,0.00018911,2]
[365490895,1749702640746,-300.64,0.00018917,2]
[365490896,1749702640755,-490.66,0.00018923,2]
[365490897,1749702640765,-491.54,0.00018923,2]
[365490898,1749702640775,-490.75,0.00018923,2]
[365490899,1749702640785,-248.3229534,0.00018934,2]
[365490900,1749702640795,-506.28,0.00018941,2]
[365490901,1749702640804,-508.78,0.00018941,2]
[365490902,1749702640814,-4096.44,0.00018945,2]
[365490903,1749702640824,-495.05,0.00018945,2]
[365490904,1749702640834,-494.72,0.00018945,2]
[365490905,1749702640843,-501.98,0.00018945,2]
[365490906,1749702640853,-304.05,0.00018945,2]
[365490907,1749702640863,-2311.83,0.00019,2]
[365490908,1749702640873,-2311.83,0.00019,2]
[365490909,1749702640882,-2311.83,0.00019,2]
[365490910,1749702640891,-2311.83,0.00019,2]
[365490911,1749702640901,-2311.83,0.00019,2]
[365490912,1749702640911,-248.3229534,0.00019003,2]
[365490913,1749702640920,-161.28620829,0.00019041,2]
[365490914,1749702640929,-5353.95,0.00019042,2]
[365490915,1749702640939,-930.10614968,0.00019071,2]
[365490917,1749702640949,-248.3229534,0.00019072,2]
[365490919,1749702640958,-1727.15114216,0.00019078,2]
[365490920,1749702640968,-164.41315124,0.00019078,2]
[365490921,1749702640978,-1000.0,0.00019078,2]
[365490922,1749702640987,-500.0,0.00019078,2]
[365490923,1749702640997,-9121.3271,0.00019078,2]
[365490924,1749702641007,-2500.0,0.00019078,2]
[365490925,1749702641016,-5353.95,0.0001912,2]
[365490926,1749702641027,-388.13739383,0.00019132,2]
[365490927,1749702641036,-248.3229534,0.00019141,2]
[365490928,1749702641046,-930.10614962,0.00019163,2]
[365490929,1749702641056,-1727.15114208,0.00019169,2]
[365490930,1749702641067,-469.85630973,0.00019173,2]
[365490931,1749702641077,-500.0,0.00019173,2]
[365490932,1749702641086,-501.46367489,0.00019173,2]
[365490933,1749702641095,-500.85649628,0.00019173,2]
[365490934,1749702641105,-500.0,0.00019173,2]
[365490935,1749702641115,-500.0,0.00019173,2]
[365490936,1749702641125,-500.0,0.00019173,2]
[365490937,1749702641134,-500.0,0.00019173,2]
[365490938,1749702641144,-500.0,0.00019173,2]
[365490939,1749702641154,-500.0,0.00019173,2]
[365490940,1749702641164,-500.0,0.00019173,2]
[365490941,1749702641173,-502.96923239,0.00019173,2]
[365490942,1749702641183,-500.0,0.00019173,2]
[365490943,1749702641192,-500.0,0.00019173,2]
[365490944,1749702641202,-500.91731703,0.00019173,2]
[365490945,1749702641211,-502.04383629,0.00019173,2]
[365490946,1749702641220,-500.0,0.00019173,2]
[365490947,1749702641230,-162.00954932,0.00019173,2]
[365490948,1749702641240,-490.0,0.00019178,2]
[365490949,1749702641250,-489.24669395,0.00019178,2]
[365490950,1749702641259,-490.0,0.00019178,2]
[365490951,1749702641269,-490.0,0.00019178,2]
[365490952,1749702641279,-484.93803881,0.00019178,2]
[365490953,1749702641288,-490.0,0.00019178,2]
[365490954,1749702641298,-430.1924195,0.00019178,2]
[365490955,1749702641308,-490.0,0.00019178,2]
[365490956,1749702641319,-491.54964741,0.00019178,2]
[365490957,1749702641328,-1818.611203,0.00019178,2]
[365490958,1749702641337,-484.91834607,0.00019178,2]
[365490959,1749702641347,-283.82823295,0.00019178,2]
[365490960,1749702641356,-480.0,0.00019178,2]
[365490961,1749702641366,-490.0,0.00019178,2]
[365490962,1749702641375,-500.0,0.00019178,2]
[365490963,1749702641385,-503.9063982,0.00019178,2]
[365490964,1749702641395,-2390.840098,0.00019178,2]
[365490965,1749702641404,-490.0,0.00019178,2]
[365490966,1749702641414,-490.0,0.00019178,2]
[365490967,1749702641424,-494.29044495,0.00019178,2]
[365490968,1749702641435,-511.55120627,0.00019178,2]
[365490969,1749702641449,-504.35325166,0.00019178,2]
[365490970,1749702641459,-490.0,0.00019178,2]
[365490971,1749702641468,-606.70252899,0.00019178,2]
[365490972,1749702641478,-490.0,0.00019178,2]
[365490973,1749702641488,-482.56385174,0.00019178,2]
[365490974,1749702641499,-490.0,0.00019178,2]
[365490975,1749702641508,-510.18596894,0.00019178,2]
[365490976,1749702641518,-1291.69,0.00019178,2]
[365490977,1749702641528,-480.0,0.00019178,2]
[365490978,1749702641537,-494.84895544,0.00019178,2]
[365490979,1749702641546,-375.66863099,0.00019178,2]
[365490980,1749702641556,-490.0,0.00019178,2]
[365490981,1749702641566,-480.0,0.00019178,2]
[365490982,1749702641576,-463.92671041,0.00019178,2]
[365490983,1749702641586,-498.08613377,0.00019178,2]
[365490984,1749702641595,-490.0,0.00019178,2]
[365490985,1749702641605,-490.0,0.00019178,2]
[365490986,1749702641615,-490.0,0.00019178,2]
[365490987,1749702641624,-490.0,0.00019178,2]
[365490988,1749702641634,-490.0,0.00019178,2]
[365490989,1749702641644,-467.55138071,0.00019178,2]
[365490990,1749702641654,-217.18894524,0.00019178,2]
[365490991,1749702641663,-462.52215521,0.00019178,2]
[365490992,1749702641673,-490.0,0.00019178,2]
[365490993,1749702641682,-506.96644367,0.00019178,2]
[365490994,1749702641692,-403.95833947,0.00019178,2]
[365490995,1749702641702,-512.00014663,0.00019178,2]
[365490996,1749702641712,-318.70308978,0.00019178,2]
[365490997,1749702641722,-493.62072391,0.00019178,2]
[365490998,1749702641732,-485.28187934,0.00019178,2]
[365490999,1749702641741,-490.0,0.00019178,2]
[365491000,1749702641751,-528.42405285,0.00019178,2]
[365491001,1749702641760,-250.0,0.00019178,2]
[365491002,1749702641771,-478.94176744,0.00019178,2]
[365491003,1749702641780,-490.0,0.00019178,2]
[365491004,1749702641791,-480.8941246,0.00019178,2]
[365491005,1749702641801,-490.0,0.00019178,2]
[365491006,1749702641810,-465.2773973,0.00019178,2]
[365491007,1749702641821,-490.0,0.00019178,2]
[365491008,1749702641830,-484.5558713,0.00019178,2]
[365491009,1749702641840,-490.0,0.00019178,2]
[365491010,1749702641850,-499.80459413,0.00019178,2]
[365491011,1749702641859,-480.0,0.00019178,2]
[365491012,1749702641869,-264.03203796,0.00019178,2]
[365491013,1749702641879,-490.0,0.00019178,2]
[365491014,1749702641888,-490.0,0.00019178,2]
[365491015,1749702641898,-501.35718287,0.00019178,2]
[365491016,1749702641907,-490.0,0.00019178,2]
[365491017,1749702641917,-463.57780621,0.00019178,2]
[365491018,1749702641927,-490.0,0.00019178,2]
[365491019,1749702641937,-490.0,0.00019178,2]
[365491020,1749702641947,-472.28647466,0.00019178,2]
[365491021,1749702641957,-449.7542001,0.00019178,2]
[365491022,1749702641967,-387.03894984,0.00019178,2]
[365491023,1749702641977,-508.64443231,0.00019178,2]
[365491024,1749702641986,-490.0,0.00019178,2]
[365491025,1749702641996,-502.86652695,0.00019178,2]
[365491026,1749702642006,-323.80206354,0.00019178,2]
[365491027,1749702642015,-490.0,0.00019178,2]
[365491028,1749702642027,-490.0,0.00019178,2]
[365491029,1749702642036,-493.96008368,0.00019178,2]
[365491030,1749702642046,-317.91406,0.00019178,2]
[365491031,1749702642056,-479.42478791,0.00019178,2]
[365491032,1749702642066,-300.0,0.00019178,2]
[365491033,1749702642076,-490.0,0.00019178,2]
[365491034,1749702642085,-490.0,0.00019178,2]
[365491035,1749702642095,-490.0,0.00019178,2]
[365491036,1749702642104,-356.51436934,0.00019178,2]
[365491037,1749702642113,-480.0,0.00019178,2]
[365491038,1749702642123,-490.0,0.00019178,2]
[365491039,1749702642132,-490.0,0.00019178,2]
[365491040,1749702642141,-490.0,0.00019178,2]
[365491041,1749702642151,-292.45351673,0.00019178,2]
[365491042,1749702642160,-490.0,0.00019178,2]
[365491043,1749702642171,-457.2971912,0.00019178,2]
[365491044,1749702642181,-378.35620098,0.00019178,2]
[365491045,1749702642190,-490.0,0.00019178,2]
[365491046,1749702642200,-303.06321817,0.00019178,2]
[365491047,1749702642210,-490.0,0.00019178,2]
[365491048,1749702642220,-480.0,0.00019178,2]
[365491049,1749702642230,-463.66794149,0.00019178,2]
[365491050,1749702642240,-490.0,0.00019178,2]
[365491051,1749702642250,-490.0,0.00019178,2]
[365491052,1749702642260,-490.0,0.00019178,2]
[365491053,1749702642270,-500.0,0.00019178,2]
[365491054,1749702642280,-480.0,0.00019178,2]
[365491055,1749702642290,-490.0,0.00019178,2]
[365491056,1749702642299,-490.0,0.00019178,2]
[365491057,1749702642309,-480.0,0.00019178,2]
[365491058,1749702642320,-490.0,0.00019178,2]
[365491059,1749702642331,-480.0,0.00019178,2]
[365491060,1749702642340,-480.0,0.00019178,2]
[365491061,1749702642350,-490.0,0.00019178,2]
[365491062,1749702642360,-490.0,0.00019178,2]
[365491063,1749702642370,-490.0,0.00019178,2]
[365491064,1749702642379,-480.0,0.00019178,2]
[365491065,1749702642390,-513.28008562,0.00019178,2]
[365491066,1749702642399,-490.0,0.00019178,2]
[365491067,1749702642409,-490.0,0.00019178,2]
[365491068,1749702642420,-490.0,0.00019178,2]
[365491069,1749702642430,-490.0,0.00019178,2]
[365491070,1749702642441,-490.0,0.00019178,2]
[365491071,1749702642453,-460.0,0.00019178,2]
[365491072,1749702642463,-460.0,0.00019178,2]
[365491073,1749702642473,-490.0,0.00019178,2]
[365491074,1749702642484,-460.0,0.00019178,2]
[365491075,1749702642494,-490.0,0.00019178,2]
[365491076,1749702642503,-490.0,0.00019178,2]
[365491077,1749702642513,-490.0,0.00019178,2]
[365491078,1749702642524,-480.0,0.00019178,2]
[365491079,1749702642535,-497.81254715,0.00019178,2]
[365491080,1749702642545,-490.0,0.00019178,2]
[365491081,1749702642554,-490.0,0.00019178,2]
[365491082,1749702642564,-460.0,0.00019178,2]
[365491083,1749702642574,-490.0,0.00019178,2]
[365491084,1749702642584,-493.00715252,0.00019178,2]
[365491085,1749702642594,-480.0,0.00019178,2]
[365491086,1749702642605,-274.706777,0.00019178,2]
[365491087,1749702642615,-551.78141956,0.00019178,2]
[365491088,1749702642625,-460.0,0.00019178,2]
[365491089,1749702642634,-514.76956332,0.00019178,2]
[365491090,1749702642644,-490.0,0.00019178,2]
[365491091,1749702642653,-490.0,0.00019178,2]
[365491092,1749702642663,-490.0,0.00019178,2]
[365491093,1749702642672,-490.0,0.00019178,2]
[365491094,1749702642682,-490.0,0.00019178,2]
[365491095,1749702642692,-487.62376616,0.00019178,2]
[365491096,1749702642702,-490.0,0.00019178,2]
[365491097,1749702642712,-740.59,0.00019178,2]
[365491098,1749702642721,-480.0,0.00019178,2]
[365491099,1749702642731,-503.79248939,0.00019178,2]
[365491100,1749702642742,-490.0,0.00019178,2]
[365491101,1749702642752,-490.0,0.00019178,2]
[365491102,1749702642761,-490.0,0.00019178,2]
[365491103,1749702642772,-484.51267482,0.00019178,2]
[365491104,1749702642782,-480.0,0.00019178,2]
[365491105,1749702642792,-490.0,0.00019178,2]
[365491106,1749702642802,-480.0,0.00019178,2]
[365491107,1749702642811,-490.0,0.00019178,2]
[365491108,1749702642823,-490.0,0.00019178,2]
[365491109,1749702642831,-480.0,0.00019178,2]
[365491110,1749702642841,-657.51,0.00019178,2]
[365491111,1749702642851,-490.0,0.00019178,2]
[365491112,1749702642860,-490.0,0.00019178,2]
[365491113,1749702642870,-490.0,0.00019178,2]
[365491114,1749702642879,-490.0510249,0.00019178,2]
[365491115,1749702642889,-480.0,0.00019178,2]
[365491116,1749702642899,-841.29,0.00019178,2]
[365491117,1749702642909,-480.0,0.00019178,2]
[365491118,1749702642919,-490.0,0.00019178,2]
[365491119,1749702642929,-420.0,0.00019178,2]
[365491120,1749702642939,-490.0,0.00019178,2]
[365491121,1749702642948,-490.0,0.00019178,2]
[365491122,1749702642958,-490.0,0.00019178,2]
[365491123,1749702642967,-628.08,0.00019178,2]
[365491124,1749702642976,-811.43,0.00019178,2]
[365491125,1749702642986,-487.74812633,0.00019178,2]
[365491126,1749702642995,-480.0,0.00019178,2]
[365491127,1749702643005,-490.0,0.00019178,2]
[365491128,1749702643015,-490.0,0.00019178,2]
[365491129,1749702643025,-491.97862756,0.00019178,2]
[365491130,1749702643034,-488.11633116,0.00019178,2]
[365491131,1749702643044,-810.57,0.00019178,2]
[365491132,1749702643054,-480.0,0.00019178,2]
[365491133,1749702643064,-480.0,0.00019178,2]
[365491134,1749702643074,-490.0,0.00019178,2]
[365491135,1749702643084,-490.0,0.00019178,2]
[365491136,1749702643094,-490.0,0.00019178,2]
[365491137,1749702643104,-490.0,0.00019178,2]
[365491138,1749702643114,-490.0,0.00019178,2]
[365491139,1749702643124,-490.0,0.00019178,2]
[365491140,1749702643134,-1359.68,0.00019178,2]
[365491141,1749702643143,-1171.14,0.00019178,2]
[365491142,1749702643153,-750.98,0.00019178,2]
[365491143,1749702643162,-490.0,0.00019178,2]
[365491144,1749702643172,-480.0,0.00019178,2]
[365491145,1749702643182,-490.0,0.00019178,2]
[365491146,1749702643192,-490.0,0.00019178,2]
[365491147,1749702643201,-658.74,0.00019178,2]
[365491148,1749702643211,-490.0,0.00019178,2]
[365491149,1749702643221,-490.0,0.00019178,2]
[365491150,1749702643231,-490.0,0.00019178,2]
[365491151,1749702643241,-1039.04,0.00019178,2]
[365491152,1749702643251,-490.0,0.00019178,2]
[365491153,1749702643261,-490.0,0.00019178,2]
[365491155,1749702643270,-176.98228298,0.00019178,2]
[365491157,1749702643280,-480.0,0.00019178,2]
[365491159,1749702643290,-490.0,0.00019178,2]
[365491160,1749702643299,-485.73963723,0.00019178,2]
[365491161,1749702643309,-499.28342562,0.00019178,2]
[365491162,1749702643319,-794.7,0.00019178,2]
[365491163,1749702643329,-490.0,0.00019178,2]
[365491164,1749702643338,-490.0,0.00019178,2]
[365491165,1749702643348,-543.52,0.00019178,2]
[365491166,1749702643358,-490.0,0.00019178,2]
[365491167,1749702643368,-490.0,0.00019178,2]
[365491168,1749702643612,-837.26,0.00019178,2]
[365491169,1749702643624,-490.0,0.00019178,2]
[365491170,1749702643635,-460.41815585,0.00019178,2]
[365491171,1749702643645,-1672.24,0.00019178,2]
[365491172,1749702643654,-480.0,0.00019178,2]
[365491173,1749702643664,-480.0,0.00019178,2]
[365491174,1749702643674,-490.0,0.00019178,2]
[365491175,1749702643683,-637.20973105,0.00019178,2]
[365491176,1749702643693,-490.0,0.00019178,2]